bitfinex/quotes_ETHUSD_20240915
["timestamp","ask_amount","ask_price","bid_price","bid_amount"]
[1726365610897,3.0,2431.7,2431.6,2.55872067]
[1726365611097,3.0,2431.7,2431.6,3.31567715]
[1726365612096,3.0,2431.7,2431.6,2.94513002]
[1726365613428,3.0,2431.7,2431.6,2.94517947]
[1726365613926,2.98766168,2431.7,2431.6,2.94518748]
[1726365614324,2.98766168,2431.7,2431.6,2.94520696]
[1726365614532,2.98766168,2431.7,2431.6,2.9452049]
[1726365615238,2.98766168,2431.7,2431.6,2.0833545]
[1726365615611,2.98766168,2431.7,2431.6,1.32639802]
[1726365615933,2.98766168,2431.7,2431.6,2.1896153]
[1726365616350,2.98766168,2431.7,2431.6,1.32639802]
[1726365617505,2.98766168,2431.7,2431.6,1.54623416]
[1726365620051,2.98766168,2431.7,2431.6,1.54559656]
[1726365624148,2.98766168,2431.7,2431.6,7.07324899]
[1726365624335,2.98766168,2431.7,2431.6,7.53003021]
[1726365625082,2.98766168,2431.7,2431.6,7.52972227]
[1726365628848,2.98766168,2431.7,2431.6,5.06412227]
[1726365629049,2.98766168,2431.7,2431.6,4.60734105]
[1726365629941,2.98766168,2431.7,2431.6,4.60687978]
[1726365631045,2.98766168,2431.7,2431.6,4.60552805]
[1726365634755,2.98766168,2431.7,2431.6,4.60543636]
[1726365635659,2.98766168,2431.7,2431.6,5.27245433]
[1726365637386,2.98766168,2431.7,2431.6,5.27246193]
[1726365639718,2.98766168,2431.7,2431.6,5.27236157]
[1726365640725,2.98766168,2431.7,2431.6,5.27235927]
[1726365641226,2.98766168,2431.7,2431.6,5.27235296]
[1726365641399,2.98766168,2431.7,2431.6,6.43443872]
[1726365641811,2.98766168,2431.7,2431.6,8.74643872]
[1726365642121,2.98766168,2431.7,2431.6,8.74625185]
[1726365642620,5.71146,2432.0,2431.6,9.18047875]
[1726365642621,3.0,2431.9,2431.6,9.18047875]
[1726365642826,3.0,2431.9,2431.8,0.86219096]
[1726365643028,3.0,2431.9,2431.8,2.18699012]
[1726365643571,3.0,2431.9,2431.8,2.40675684]
[1726365644552,3.0,2431.9,2431.8,2.40689729]
[1726365647373,3.0,2431.9,2431.8,4.60541147]
[1726365648226,3.0,2431.9,2431.8,6.53603649]
[1726365648436,3.0,2431.9,2431.8,5.86917425]
[1726365649471,3.0,2431.9,2431.8,5.86989856]
[1726365649625,3.0,2431.9,2431.8,4.6069513]
[1726365649626,8.04587051,2431.9,2431.8,4.6069513]
[1726365649955,6.2896,2431.9,2431.8,4.6069513]
[1726365652192,3.0,2431.9,2431.8,4.6069513]
[1726365653768,6.2896,2431.9,2431.8,4.6069513]
[1726365653967,6.2896,2431.9,2431.8,4.25341277]
[1726365654369,3.0,2431.9,2431.8,5.98137393]
[1726365654699,3.3292678,2432.1,2431.8,5.04081049]
[1726365654886,3.28948,2432.0,2431.9,4.38811825]
[1726365655044,3.28948,2432.0,2431.9,4.60776218]
[1726365655244,0.0398278,2432.1,2431.9,4.60776218]
[1726365655491,0.0398278,2432.1,2432.0,2.18912941]
[1726365655688,0.0398278,2432.1,2432.0,2.408768]
[1726365656384,3.0398278,2432.1,2432.0,2.99668054]
[1726365656570,3.0398278,2432.1,2432.0,2.13372423]
[1726365656975,6.3291578,2432.1,2432.0,2.13372423]
[1726365658081,6.3291578,2432.1,2432.0,2.13387228]
[1726365658388,3.0398278,2432.1,2432.0,2.99693951]
[1726365658636,3.0398278,2432.1,2432.0,6.1462347]
[1726365661496,3.0398278,2432.1,2432.0,5.55817411]
[1726365661703,3.0398278,2432.1,2432.0,6.14617791]
[1726365662605,3.0398278,2432.1,2432.0,6.14592569]
[1726365663153,3.0398278,2432.1,2432.0,6.14591422]
[1726365663549,3.0398278,2432.1,2432.0,6.14547669]
[1726365663727,3.0398278,2432.1,2432.0,5.55748436]
[1726365663918,3.0398278,2432.1,2432.0,3.78974098]
[1726365664246,3.0398278,2432.1,2432.0,6.14526857]
[1726365664445,3.0398278,2432.1,2432.0,4.37771042]
[1726365664608,3.0398278,2432.1,2432.0,3.08318396]
[1726365667426,3.0398278,2432.1,2432.0,3.08274029]
[1726365667744,3.0398278,2432.1,2432.0,6.14462815]
[1726365668604,3.0398278,2432.1,2432.0,3.94538489]
[1726365668809,3.0398278,2432.1,2432.0,2.13308524]
[1726365669046,3.0398278,2432.1,2432.0,5.19497998]
[1726365669353,3.0398278,2432.1,2432.0,2.13308524]
[1726365670050,11.37475831,2432.1,2432.0,2.13308524]
[1726365670246,13.69175831,2432.1,2432.0,2.40783031]
[1726365670420,13.69175831,2432.1,2432.0,1.5451158]
[1726365672243,13.69175831,2432.1,2432.0,1.54549664]
[1726365677153,13.69175831,2432.1,2432.0,1.54568583]
[1726365681733,15.10397116,2432.1,2432.0,1.54568583]
[1726365681939,15.10397116,2432.1,2432.0,0.21963859]
[1726365682237,8.6646,2431.9,2431.8,0.86271451]
[1726365682434,10.42087051,2431.9,2431.8,3.14778881]
[1726365682943,13.71047051,2431.9,2431.8,3.14778881]
[1726365683765,13.71047051,2431.9,2431.8,2.55959584]
[1726365683964,13.71047051,2431.9,2431.8,3.14779979]
[1726365684132,13.71047051,2431.9,2431.8,2.55959584]
[1726365684473,13.71047051,2431.9,2431.8,3.14779247]
[1726365686898,13.71047051,2431.9,2431.8,3.13713429]
[1726365689551,11.33547051,2431.9,2431.8,3.13713429]
[1726365691066,11.33547051,2431.9,2431.8,3.13713736]
[1726365691487,11.33547051,2431.9,2431.8,2.17862111]
[1726365691797,11.33547051,2431.9,2431.8,3.13712577]
[1726365693592,11.33547051,2431.9,2431.8,3.13688955]
[1726365694655,11.33547051,2431.9,2431.8,2.76657615]
[1726365697194,11.33547051,2431.9,2431.8,2.98605461]
[1726365698900,11.33547051,2431.9,2431.8,2.98477985]
[1726365701405,11.33547051,2431.9,2431.8,2.98461228]
[1726365701899,11.33547051,2431.9,2431.8,2.39645794]
[1726365702203,11.33547051,2431.9,2431.8,2.98461745]
[1726365702988,11.33547051,2431.9,2431.8,2.39645794]
[1726365703303,11.33547051,2431.9,2431.8,2.98461006]
[1726365703984,13.61917051,2431.9,2431.8,2.39648774]
[1726365706164,13.61917051,2431.9,2431.8,2.39658015]
[1726365706969,11.33547051,2431.9,2431.8,2.39658015]
[1726365708182,9.5792,2431.9,2431.8,2.39658015]
[1726365708608,6.2896,2431.9,2431.8,2.39658015]
[1726365708785,6.2896,2431.9,2431.8,5.35840097]
[1726365709318,6.2896,2431.9,2431.8,6.02573583]
[1726365710976,6.2896,2431.9,2431.8,6.02586168]
[1726365711175,6.2896,2431.9,2431.8,5.25139582]
[1726365712295,6.2896,2431.9,2431.8,4.58406096]
[1726365712494,6.2896,2431.9,2431.8,5.25142243]
[1726365712822,6.2896,2431.9,2431.8,5.25143192]
[1726365714579,6.2896,2431.9,2431.8,4.58406096]
[1726365714911,6.2896,2431.9,2431.8,5.25213703]
[1726365715116,6.2896,2431.9,2431.8,3.2895345]
[1726365715323,6.2896,2431.9,2431.8,3.95689993]
[1726365715479,6.2896,2431.9,2431.8,5.68435191]
[1726365715814,6.2896,2431.9,2431.8,5.01756994]
[1726365716178,6.2896,2431.9,2431.8,3.95748723]
[1726365717705,6.2896,2431.9,2431.8,5.68493921]
[1726365717885,6.2896,2431.9,2431.8,5.01756994]
[1726365718421,6.2896,2431.9,2431.8,5.68493234]
[1726365718825,6.2896,2431.9,2431.8,3.95748036]
[1726365719022,6.2896,2431.9,2431.8,5.68492394]
[1726365719521,6.2896,2431.9,2431.8,3.29011796]
[1726365722827,3.0,2432.0,2431.8,5.9792984]
[1726365723028,0.0398278,2432.1,2431.9,7.90594546]
[1726365723238,0.0398278,2432.1,2432.0,5.92211899]
[1726365723381,0.0398278,2432.1,2432.0,6.80880153]
[1726365723594,0.0398278,2432.1,2432.0,6.14164547]
[1726365724023,0.0398278,2432.1,2432.0,6.14137143]
[1726365724226,3.0398278,2432.1,2432.0,6.14137143]
[1726365724431,3.0398278,2432.1,2432.0,4.41450864]
[1726365724612,3.0398278,2432.1,2432.0,6.14137143]
[1726365725132,3.0398278,2432.1,2432.0,4.41450864]
[1726365725424,3.0398278,2432.1,2432.0,5.70891763]
[1726365729039,3.0398278,2432.1,2432.0,5.7069409]
[1726365731150,3.0398278,2432.1,2432.0,4.5823242]
[1726365733236,3.0398278,2432.1,2432.0,1.53364696]
[1726365733646,3.0398278,2432.1,2432.0,1.53395866]
[1726365735158,3.0398278,2432.1,2432.0,2.39620335]
[1726365735358,3.0398278,2432.1,2432.0,1.53395866]
[1726365736125,6.3291578,2432.1,2432.0,1.53395866]
[1726365736828,6.3291578,2432.1,2432.0,2.39618152]
[1726365737027,6.3291578,2432.1,2432.0,1.53395866]
[1726365737940,6.3291578,2432.1,2432.0,3.80065866]
[1726365738139,6.3291578,2432.1,2432.0,6.84735982]
[1726365738367,6.3291578,2432.1,2432.0,5.09506765]
[1726365738542,6.3291578,2432.1,2432.0,6.84735982]
[1726365738739,6.3291578,2432.1,2432.0,5.09506765]
[1726365739039,6.3291578,2432.1,2432.0,6.84735982]
[1726365739239,6.3291578,2432.1,2432.0,3.80065866]
[1726365740930,0.0398278,2432.1,2432.0,6.84774576]
[1726365741130,0.0398278,2432.1,2432.0,3.80065866]
[1726365742777,0.0398278,2432.1,2432.0,6.84807993]
[1726365743063,0.0398278,2432.1,2432.0,5.09506765]
[1726365743238,0.0398278,2432.1,2432.0,3.80065866]
[1726365743448,0.0398278,2432.1,2432.0,6.84844819]
[1726365743664,0.0398278,2432.1,2432.0,5.09541451]
[1726365743845,0.0398278,2432.1,2432.0,6.84844819]
[1726365744046,0.0398278,2432.1,2432.0,3.80100552]
[1726365744262,0.0398278,2432.1,2432.0,6.84844051]
[1726365744474,0.0398278,2432.1,2432.0,5.09541451]
[1726365744773,0.0398278,2432.1,2432.0,6.84849945]
[1726365744968,0.0398278,2432.1,2432.0,5.09541451]
[1726365745172,0.0398278,2432.1,2432.0,6.84849945]
[1726365745376,0.0398278,2432.1,2432.0,5.09541451]
[1726365745579,0.0398278,2432.1,2432.0,6.84849945]
[1726365745774,0.0398278,2432.1,2432.0,5.09541451]
[1726365746082,0.0398278,2432.1,2432.0,6.84849945]
[1726365746252,0.0398278,2432.1,2432.0,5.09541451]
[1726365746429,0.0398278,2432.1,2432.0,6.84849945]
[1726365746756,0.0398278,2432.1,2432.0,5.09541451]
[1726365746957,0.0398278,2432.1,2432.0,6.84849945]
[1726365747159,0.0398278,2432.1,2432.0,5.09541451]
[1726365747463,0.0398278,2432.1,2432.0,6.84849945]
[1726365747662,0.0398278,2432.1,2432.0,5.09541451]
[1726365747873,0.0398278,2432.1,2432.0,6.84849945]
[1726365748172,0.0398278,2432.1,2432.0,3.78063547]
[1726365748477,0.0398278,2432.1,2432.0,4.58195118]
[1726365748478,6.3291578,2432.1,2432.0,4.58195118]
[1726365748632,0.0398278,2432.1,2432.0,2.82886624]
[1726365748832,0.0398278,2432.1,2432.0,4.58195118]
[1726365749938,0.0398278,2432.1,2432.0,6.93365118]
[1726365750272,0.0398278,2432.1,2432.0,8.10942634]
[1726365751579,0.0398278,2432.1,2432.0,6.81501735]
[1726365752588,0.0398278,2432.1,2432.0,8.54188014]
[1726365753250,0.0398278,2432.1,2432.0,5.63924219]
[1726365754562,0.0398278,2432.1,2432.0,7.36610498]
[1726365754961,0.0398278,2432.1,2432.0,7.7362342]
[1726365755658,0.0398278,2432.1,2432.0,7.73623653]
[1726365756061,0.0398278,2432.1,2432.0,5.38453653]
[1726365756282,0.0398278,2432.1,2432.0,4.95201031]
[1726365757085,3.0398278,2432.1,2432.0,4.95201031]
[1726365757291,0.0398278,2432.1,2432.0,4.95201031]
[1726365757650,3.3291578,2432.1,2432.0,4.95201031]
[1726365757996,13.36613463,2432.1,2432.0,2.76703061]
[1726365758885,13.36613463,2432.1,2432.0,2.39689906]
[1726365759462,13.36613463,2432.1,2432.0,1.53430574]
[1726365759793,13.36613463,2432.1,2432.0,2.3969883]
[1726365760700,13.36613463,2432.1,2432.0,1.53430574]
[1726365760864,13.36613463,2432.1,2432.0,2.39705565]
[1726365761598,13.36613463,2432.1,2432.0,1.53430574]
[1726365762103,13.36613463,2432.1,2432.0,2.39707343]
[1726365762876,13.36613463,2432.1,2432.0,2.39747787]
[1726365763610,13.36613463,2432.1,2432.0,1.53471018]
[1726365764178,11.9913878,2432.1,2432.0,1.53471018]
[1726365764377,11.9913878,2432.1,2432.0,2.12228054]
[1726365765195,11.9913878,2432.1,2432.0,5.17011787]
[1726365765369,11.9913878,2432.1,2432.0,2.12228054]
[1726365765568,11.9913878,2432.1,2432.0,5.17028247]
[1726365765801,11.9913878,2432.1,2432.0,5.17030109]
[1726365766274,11.9913878,2432.1,2432.0,5.17029256]
[1726365767707,11.9913878,2432.1,2432.0,5.17041868]
[1726365769308,11.9913878,2432.1,2432.0,4.58283823]
[1726365769474,11.9913878,2432.1,2432.0,5.17042046]
[1726365770477,11.9913878,2432.1,2432.0,5.17040891]
[1726365772709,11.9913878,2432.1,2432.0,5.17042139]
[1726365773008,11.9913878,2432.1,2432.0,5.17041332]
[1726365773511,12.42174691,2432.1,2432.0,5.17041332]
[1726365776217,12.42174691,2432.1,2432.0,5.1704364]
[1726365776834,12.42174691,2432.1,2432.0,5.17043209]
[1726365778794,17.12887865,2432.1,2432.0,0.21952648]
[1726365778990,17.12887865,2432.1,2432.0,1.54195028]
[1726365779232,11.8329,2431.9,2431.8,0.86301417]
[1726365779435,11.8329,2431.9,2431.8,2.77297889]
[1726365779736,15.1225,2431.9,2431.8,1.32217303]
[1726365780545,11.83344,2431.7,2431.6,0.86301417]
[1726365780827,6.29001,2431.6,2431.5,0.86301417]
[1726365781148,8.04628051,2431.6,2431.5,1.45097365]
[1726365781304,8.04628051,2431.6,2431.5,2.76283709]
[1726365781828,8.04628051,2431.6,2431.5,1.31186344]
[1726365782035,11.33629051,2431.6,2431.5,1.31186344]
[1726365784445,3.29028,2431.4,2431.3,1.45102585]
[1726365784655,5.04655051,2431.4,2431.3,2.7611765]
[1726365784813,8.04655051,2431.4,2431.3,2.7611765]
[1726365786044,8.04655051,2431.4,2431.3,2.76089173]
[1726365786277,8.04655051,2431.4,2431.3,2.17288548]
[1726365786757,8.04655051,2431.4,2431.3,2.76089282]
[1726365786954,8.04655051,2431.4,2431.3,2.98041399]
[1726365787259,8.04655051,2431.4,2431.3,2.39240665]
[1726365789817,8.04655051,2431.4,2431.3,1.52939248]
[1726365790045,11.33683051,2431.4,2431.3,1.52939248]
[1726365790248,11.33683051,2431.4,2431.3,1.52863753]
[1726365791487,13.83243051,2431.4,2431.3,1.52863753]
[1726365791792,15.21567356,2431.4,2431.3,0.21952117]
[1726365792289,15.21567356,2431.4,2431.0,0.86301417]
[1726365792290,3.29069,2431.1,2431.0,0.86301417]
[1726365792458,6.29069,2431.1,2431.0,2.17231233]
[1726365794359,6.29069,2431.1,2431.0,1.30929816]
[1726365795897,3.29082,2431.0,2430.9,3.33971417]
[1726365796099,6.29082,2431.0,2430.9,4.64913066]
[1726365800281,6.29082,2431.0,2430.9,5.24347738]
[1726365800791,6.29082,2431.0,2430.9,5.24391526]
[1726365801555,6.29082,2431.0,2430.9,3.93406089]
[1726365801766,6.29082,2431.0,2430.9,5.24391526]
[1726365801962,6.29082,2431.0,2430.9,4.15358161]
[1726365802183,6.29082,2431.0,2430.9,5.46343598]
[1726365802386,6.29082,2431.0,2430.9,4.15358161]
[1726365802599,6.29082,2431.0,2430.9,5.46343598]
[1726365802764,6.29082,2431.0,2430.9,4.15358161]
[1726365803064,6.29082,2431.0,2430.9,5.46343598]
[1726365803257,6.29082,2431.0,2430.9,3.29056744]
[1726365803461,6.29082,2431.0,2430.9,4.60042181]
[1726365806397,6.29082,2431.0,2430.9,5.46343598]
[1726365806706,6.29082,2431.0,2430.9,2.69622072]
[1726365807003,11.33791051,2431.0,2430.9,1.52937509]
[1726365807210,11.33791051,2431.0,2430.9,0.21952072]
[1726365809858,9.58164,2431.0,2430.9,0.21952072]
[1726365810170,9.58164,2431.0,2430.6,2.17287716]
[1726365810171,6.29123,2430.7,2430.6,2.17287716]
[1726365810471,6.29123,2430.7,2430.6,2.1729071]
[1726365810700,3.0,2430.6,2430.5,2.1729071]
[1726365810903,8.04763051,2430.6,2430.5,2.1729071]
[1726365811202,9.583,2430.5,2430.4,2.1729071]
[1726365811358,6.2915,2430.5,2430.3,2.1729071]
[1726365811555,6.2915,2430.5,2430.4,1.30989293]
[1726365811767,6.2915,2430.5,2430.3,2.1729071]
[1726365812009,9.58309,2430.5,2430.3,2.1729071]
[1726365812608,8.04790051,2430.4,2430.3,2.1729071]
[1726365813307,4.75627051,2430.4,2430.3,0.86301417]
[1726365813506,3.0,2430.4,2430.3,2.1729071]
[1726365813825,3.0,2430.4,2430.3,2.17236053]
[1726365814579,3.0,2430.4,2430.3,0.86301417]
[1726365815375,3.0,2430.4,2430.3,2.17239556]
[1726365815572,3.0,2430.4,2430.3,0.86301417]
[1726365816302,3.0,2430.4,2430.3,2.17239556]
[1726365816503,3.0,2430.4,2430.3,0.86301417]
[1726365817018,3.0,2430.4,2430.3,1.08295137]
[1726365817315,3.0,2430.4,2430.3,2.39233276]
[1726365817520,3.0,2430.4,2430.3,1.08295137]
[1726365818192,3.0,2430.4,2430.3,2.39233276]
[1726365820014,4.75627051,2430.6,2430.3,2.39233276]
[1726365820226,4.75627051,2430.6,2430.3,2.3923599]
[1726365821093,8.04765051,2430.6,2430.3,2.3923599]
[1726365821294,8.04765051,2430.6,2430.4,1.30940853]
[1726365821483,8.04765051,2430.6,2430.3,2.1724227]
[1726365821683,8.04765051,2430.6,2430.4,0.2199372]
[1726365822185,8.04765051,2430.6,2430.4,2.3923599]
[1726365822387,6.2915,2430.5,2430.4,2.3923599]
[1726365822587,6.2915,2430.5,2430.4,1.08295137]
[1726365822791,6.2915,2430.5,2430.4,2.3923599]
[1726365824241,4.75627051,2430.6,2430.4,2.3923599]
[1726365824525,4.75627051,2430.6,2430.5,1.30940853]
[1726365824731,4.75627051,2430.6,2430.5,1.52968213]
[1726365824930,4.75627051,2430.6,2430.5,1.53094315]
[1726365825427,8.04763051,2430.6,2430.5,1.53094315]
[1726365826289,4.75627051,2430.6,2430.5,1.53094315]
[1726365826787,3.0,2430.6,2430.5,1.53094315]
[1726365827013,4.75627051,2430.6,2430.5,1.53094315]
[1726365829909,4.75627051,2430.6,2430.5,1.53115002]
[1726365834734,4.75627051,2430.6,2430.5,1.53159006]
[1726365835477,4.75627051,2430.6,2430.5,2.39460423]
[1726365836389,4.75627051,2430.6,2430.5,1.53159006]
[1726365836687,4.75627051,2430.6,2430.5,2.39460423]
[1726365839595,4.75627051,2430.6,2430.5,2.39519133]
[1726365843886,4.75627051,2430.6,2430.5,2.76614964]
[1726365847291,4.75627051,2430.6,2430.5,2.7669501]
[1726365847491,4.75627051,2430.6,2430.5,1.53217716]
[1726365847905,4.75627051,2430.6,2430.5,3.19826486]
[1726365848318,2.4135,2431.0,2430.5,3.74092242]
[1726365848477,1.75627051,2431.1,2430.8,0.86394174]
[1726365848678,1.75627051,2431.1,2430.9,2.17664105]
[1726365849033,1.75627051,2431.1,2431.0,1.31269931]
[1726365849240,1.75627051,2431.1,2431.0,0.22032702]
[1726365849377,2.21629206,2431.1,2431.0,1.31273463]
[1726365849576,2.21629206,2431.1,2431.0,1.53306165]
[1726365849776,5.21629206,2431.1,2431.0,1.53306165]
[1726365852782,5.21629206,2431.1,2431.0,1.53377608]
[1726365857744,5.21629206,2431.1,2431.0,1.5342963]
[1726365862719,5.21629206,2431.1,2431.0,1.53417098]
[1726365867135,5.21629206,2431.1,2431.0,0.22032702]
[1726365867432,5.21629206,2431.1,2430.8,0.86394174]
[1726365867636,1.75627051,2430.9,2430.8,0.86394174]
[1726365867839,1.75627051,2430.9,2430.8,2.76665496]
[1726365869009,1.75627051,2430.9,2430.8,2.17778466]
[1726365869400,1.75627051,2430.9,2430.8,2.76665226]
[1726365869818,1.75627051,2430.9,2430.8,2.17778466]
[1726365870004,1.75627051,2430.9,2430.8,2.76665249]
[1726365872008,10.93775756,2430.9,2430.8,2.76665249]
[1726365872224,10.93775756,2430.9,2430.8,1.31384292]
[1726365872823,10.93775756,2430.9,2430.6,0.86394174]
[1726365872824,5.4149,2430.8,2430.6,0.86394174]
[1726365873018,4.75627051,2430.7,2430.6,0.86394174]
[1726365873243,4.75627051,2430.7,2430.6,2.76684037]
[1726365874052,4.75627051,2430.7,2430.6,2.76681165]
[1726365874912,4.75627051,2430.7,2430.6,2.17789489]
[1726365875141,5.99234614,2430.7,2430.6,2.17789489]
[1726365875833,5.99234614,2430.7,2430.6,1.31395315]
[1726365877050,5.99234614,2430.7,2430.6,1.53400777]
[1726365877255,4.75627051,2430.7,2430.6,1.53400777]
[1726365877459,7.17117051,2430.7,2430.6,1.53383006]
[1726365878047,7.17117051,2430.7,2430.6,0.22005462]
[1726365878208,7.93585027,2430.7,2430.6,1.31375535]
[1726365878615,7.93585027,2430.7,2430.6,1.53394884]
[1726365879232,7.93585027,2430.7,2430.6,0.22019349]
[1726365879564,7.93585027,2430.7,2430.4,0.86394174]
[1726365879718,6.17957976,2430.7,2430.6,0.22019349]
[1726365879921,7.93585027,2430.7,2430.4,0.86394174]
[1726365880226,1.75627051,2430.5,2430.4,0.86394174]
[1726365880560,1.75627051,2430.5,2430.4,2.76645833]
[1726365882248,1.75627051,2430.5,2430.4,2.76626376]
[1726365886321,1.75627051,2430.5,2430.4,1.90232202]
[1726365887232,1.75627051,2430.5,2430.4,1.91195323]
[1726365887828,1.75627051,2430.5,2430.4,2.77607051]
[1726365888072,1.75627051,2430.5,2430.4,1.91195323]
[1726365888449,1.75627051,2430.5,2430.4,2.77606374]
[1726365889935,1.75627051,2430.5,2430.4,2.18710297]
[1726365890233,1.75627051,2430.5,2430.4,2.77605634]
[1726365890833,1.75627051,2430.5,2430.4,2.77605643]
[1726365891976,1.75627051,2430.5,2430.4,2.99624992]
[1726365892271,1.75627051,2430.5,2430.4,2.99608153]
[1726365892769,1.75627051,2430.7,2430.4,7.54017672]
[1726365892975,1.75627051,2430.7,2430.5,2.77571808]
[1726365893129,1.75627051,2430.7,2430.6,2.18676462]
[1726365893568,1.75627051,2430.7,2430.6,2.40700084]
[1726365897255,1.75627051,2430.7,2430.6,2.40700153]
[1726365900675,1.75627051,2430.7,2430.6,2.99590625]
[1726365900979,1.75627051,2430.7,2430.6,2.9959074]
[1726365901338,4.74157756,2430.7,2430.6,2.40700153]
[1726365901564,7.02457051,2430.7,2430.6,2.40700153]
[1726365903186,2.2683,2430.9,2430.6,2.40700153]
[1726365903396,2.2683,2431.1,2430.7,2.18676531]
[1726365903681,1.75627051,2430.9,2430.8,1.543077]
[1726365903852,1.75627051,2430.9,2430.8,2.40701755]
[1726365904060,1.75627051,2430.9,2430.8,2.84912227]
[1726365904270,1.75627051,2430.9,2430.8,5.19902227]
[1726365904458,1.75627051,2430.9,2430.8,5.78788303]
[1726365904855,1.75627051,2430.9,2430.8,4.92394248]
[1726365905082,1.75627051,2430.9,2430.8,7.98402813]
[1726365905246,1.75627051,2430.9,2430.8,6.2198551]
[1726365905450,1.75627051,2430.9,2430.8,5.34638351]
[1726365905641,1.75627051,2430.9,2430.8,2.99648351]
[1726365905841,1.75627051,2430.9,2430.8,2.99647911]
[1726365907458,1.75627051,2430.9,2430.8,2.40762275]
[1726365907784,1.75627051,2430.9,2430.8,2.99647867]
[1726365908681,1.75627051,2430.9,2430.8,2.40762275]
[1726365909358,4.75627051,2430.9,2430.8,2.40762275]
[1726365909944,4.75627051,2430.9,2430.8,2.77855046]
[1726365910363,4.75627051,2430.9,2430.8,2.77870542]
[1726365914505,4.75627051,2430.9,2430.8,2.40777771]
[1726365915295,4.75627051,2430.9,2430.8,2.40796224]
[1726365920278,4.75627051,2430.9,2430.8,2.40795975]
[1726365921596,1.75627051,2430.9,2430.8,2.40795975]
[1726365925085,1.75627051,2430.9,2430.8,2.40791809]
[1726365930010,1.75627051,2430.9,2430.8,2.40817365]
[1726365931990,1.75627051,2430.9,2430.8,2.56625495]
[1726365932499,4.55299756,2430.9,2430.8,1.70206892]
[1726365932702,7.55299756,2430.9,2430.8,2.5667962]
[1726365932907,7.55299756,2430.9,2430.8,1.70206892]
[1726365933433,7.55299756,2430.9,2430.8,0.37833354]
[1726365933595,7.55299756,2430.9,2430.8,1.70236424]
[1726365933796,7.55299756,2430.9,2430.8,1.3240307]
[1726365933996,7.55299756,2430.9,2430.8,0.37833888]
[1726365934422,3.0,2430.8,2430.6,0.86472728]
[1726365934727,1.75627051,2430.7,2430.6,0.86472728]
[1726365935027,1.75627051,2430.7,2430.6,1.7655279]
[1726365935229,1.75627051,2430.7,2430.6,3.06144052]
[1726365935431,1.75627051,2430.7,2430.6,1.32414593]
[1726365935620,1.75627051,2430.7,2430.6,4.38572237]
[1726365936312,1.75627051,2430.7,2430.6,1.32414593]
[1726365936539,1.75627051,2430.7,2430.6,4.38585122]
[1726365936947,1.75627051,2430.7,2430.6,4.7641901]
[1726365937797,1.75627051,2430.7,2430.6,1.70248481]
[1726365938040,1.75627051,2430.7,2430.6,4.76429786]
[1726365938208,1.75627051,2430.7,2430.6,1.70248481]
[1726365938410,1.75627051,2430.7,2430.6,4.76447297]
[1726365939121,1.75627051,2430.7,2430.6,4.76442519]
[1726365939293,1.75627051,2430.7,2430.6,2.56762201]
[1726365939500,7.77130756,2430.7,2430.6,2.56762201]
[1726365939741,7.06357051,2430.7,2430.6,2.56762201]
[1726365940709,7.06357051,2430.7,2430.6,2.56789822]
[1726365943232,2.3073,2430.7,2430.6,2.56789822]
[1726365943432,1.75627051,2430.7,2430.6,2.56789822]
[1726365944151,5.3073,2430.9,2430.6,2.56789822]
[1726365944330,1.75627051,2430.7,2430.6,1.24347608]
[1726365944645,1.75627051,2430.7,2430.6,2.5676919]
[1726365955480,1.75627051,2430.7,2430.6,2.56741977]
[1726365960284,1.75627051,2430.7,2430.6,1.24347608]
[1726365960489,1.75627051,2430.7,2430.6,2.56744721]
[1726365960865,4.06357051,2430.9,2430.6,2.56744721]
[1726365961089,1.75627051,2430.9,2430.7,2.18910833]
[1726365961275,1.75627051,2430.9,2430.8,1.70240081]
[1726365961487,2.47536756,2430.9,2430.8,1.70240081]
[1726365961992,2.47536756,2430.9,2430.8,0.37842968]
[1726365962191,2.47536756,2430.9,2430.6,0.8651372]
[1726365962357,0.71909705,2430.9,2430.8,0.37850979]
[1726365962557,2.47536756,2430.9,2430.6,0.8651372]
[1726365962758,1.75627051,2430.7,2430.6,0.8651372]
[1726365962990,1.75627051,2430.7,2430.6,2.18914019]
[1726365963356,1.75627051,2430.7,2430.6,1.32400299]
[1726365963894,1.75627051,2430.7,2430.6,4.38530545]
[1726365965297,1.75627051,2430.7,2430.6,5.05408846]
[1726365966798,1.75627051,2430.7,2430.6,4.38530545]
[1726365966999,1.75627051,2430.7,2430.6,5.43255847]
[1726365967292,1.75627051,2430.7,2430.6,4.13664585]
[1726365967456,1.75627051,2430.7,2430.6,5.86350864]
[1726365967656,1.75627051,2430.7,2430.6,6.45705531]
[1726365967861,1.75627051,2430.7,2430.6,4.76510051]
[1726365968183,1.75627051,2430.7,2430.6,6.0274278]
[1726365968578,1.75627051,2430.7,2430.6,5.43388113]
[1726365969294,1.75627051,2430.7,2430.6,4.76510051]
[1726365970427,1.75627051,2430.7,2430.6,5.35400947]
[1726365970575,1.75627051,2430.7,2430.6,5.35400629]
[1726365971258,1.75627051,2430.7,2430.6,5.72496068]
[1726365972583,1.75627051,2430.7,2430.6,4.4277254]
[1726365973601,1.75627051,2430.7,2430.6,4.4332411]
[1726365973913,1.75297921,2430.7,2430.6,4.4332411]
[1726365974263,1.75297921,2430.7,2430.6,4.43324189]
[1726365974688,1.75297921,2430.7,2430.6,3.47338093]
[1726365974864,1.75297921,2430.7,2430.6,4.43324298]
[1726365975297,1.75297921,2430.7,2430.6,5.7308221]
[1726365975497,1.75297921,2430.7,2430.6,4.43324298]
[1726365975868,1.75297921,2430.7,2430.6,5.73090151]
[1726365976087,1.75297921,2430.7,2430.6,4.43324298]
[1726365977104,1.75297921,2430.7,2430.6,5.73099001]
[1726365977457,1.75297921,2430.7,2430.6,4.43324298]
[1726365978036,1.75297921,2430.7,2430.6,4.43325386]
[1726365978316,1.75297921,2430.7,2430.6,5.73110928]
[1726365978537,1.75297921,2430.7,2430.6,5.7315668]
[1726365978702,1.75297921,2430.7,2430.6,5.73157015]
[1726365979091,1.75297921,2430.7,2430.6,4.43372156]
[1726365979313,3.0,2430.8,2430.6,4.43372156]
[1726365979522,3.0,2430.8,2430.7,5.35322256]
[1726365979681,3.0,2430.8,2430.7,5.72832424]
[1726365980722,3.0,2430.8,2430.7,4.76844448]
[1726365980932,3.0,2430.8,2430.7,5.35736542]
[1726365981087,3.0,2430.8,2430.7,5.72832795]
[1726365981831,3.0,2430.8,2430.7,5.72832831]
[1726365983214,3.0,2431.1,2430.7,8.77264742]
[1726365983533,3.0,2431.1,2430.9,0.86520025]
[1726365983534,4.75627051,2431.1,2430.9,0.86520025]
[1726365983722,5.2911,2430.9,2430.8,0.36266616]
[1726365984026,5.2911,2430.9,2430.8,1.32984976]
[1726365984220,5.2911,2430.9,2430.8,0.36266616]
[1726365984397,6.07061521,2430.9,2430.8,0.36266616]
[1726365984888,6.07061521,2430.9,2430.6,0.86523749]
[1726365985089,6.07061521,2430.9,2430.7,1.69251922]